bitfinex-derivatives/quotes_SOLF0:USTF0_20260217
["timestamp","ask_amount","ask_price","bid_price","bid_amount"]
[1771345480381,4.48371285,84.44,84.379,6.08751416]
[1771345480971,10.6648,84.428,84.379,6.08751416]
[1771345481176,4.47535857,84.427,84.379,6.08751416]
[1771345481381,4.47535857,84.449,84.379,6.08751416]
[1771345482480,4.44803364,84.437,84.382,6.08751416]
[1771345483182,4.44803364,84.437,84.37,6.01745684]
[1771345483183,4.44803364,84.437,84.385,6.08751416]
[1771345483585,4.44803364,84.437,84.389,6.08751416]
[1771345485983,4.48965806,84.425,84.374,5.87024554]
[1771345486479,10.6654,84.424,84.374,5.87024554]
[1771345486677,4.44555125,84.423,84.374,5.87024554]
[1771345487587,4.41822781,84.41,84.351,5.87024554]
[1771345488685,10.6672,84.409,84.356,5.87024554]
[1771345489085,4.41822781,84.41,84.356,5.87024554]
[1771345489889,10.6692,84.393,84.341,16.54594554]
[1771345490082,4.38801434,84.409,84.341,5.87024554]
[1771345490482,4.38801434,84.409,84.356,5.87024554]
[1771345491787,15.05511434,84.409,84.359,5.87024554]
[1771345491989,4.32172347,84.429,84.359,5.87024554]
[1771345492482,10.6661,84.417,84.362,6.01565447]
[1771345492679,4.30240051,84.416,84.35,12.03311131]
[1771345492882,4.30240051,84.416,84.35,6.01565447]
[1771345493084,10.6688,84.397,84.351,10.6744]
[1771345493790,10.6688,84.397,84.351,16.69005447]
[1771345493993,21.3257,84.444,84.332,74.56]
[1771345493994,4.27855257,84.426,84.355,6.01565447]
[1771345494293,6.01745684,84.43,84.355,6.01565447]
[1771345494485,6.01745684,84.43,84.356,6.01565447]
[1771345494681,6.01745684,84.43,84.374,6.01565447]
[1771345495391,4.02253634,84.429,84.374,6.01565447]
[1771345496093,4.02253634,84.429,84.375,6.01565447]
[1771345497585,10.6657,84.421,84.375,6.01565447]
[1771345497782,4.02253634,84.429,84.375,6.01565447]
[1771345497986,2.02206164,84.41,84.375,6.01565447]
[1771345498181,2.02206164,84.41,84.366,10.6725]
[1771345498387,10.6671,84.409,84.361,6.01565447]
[1771345498592,10.6671,84.409,84.316,35.42]
[1771345498593,2.02206164,84.4,84.351,6.01565447]
[1771345498791,2.02206164,84.39,84.34,2.02206164]
[1771345499197,2.02206164,84.39,84.336,6.01565447]
[1771345499692,2.02206164,84.39,84.34,2.02206164]
[1771345499894,2.02206164,84.39,84.343,10.6754]
[1771345500492,3.88900764,84.389,84.341,6.01565447]
[1771345500693,3.88900764,84.389,84.33,8.03771611]
[1771345500991,3.8965676,84.409,84.351,6.01565447]
[1771345503088,10.666,84.418,84.371,6.01565447]
[1771345503792,2.02206164,84.41,84.371,6.01565447]
[1771345504392,2.02206164,84.42,84.371,6.01565447]
[1771345505291,2.02206164,84.41,84.371,6.01565447]
[1771345505896,10.6672,84.409,84.371,6.01565447]
[1771345506596,2.02206164,84.41,84.371,6.01565447]
[1771345507106,10.6673,84.408,84.36,2.02206164]
[1771345507292,10.6673,84.408,84.361,6.01565447]
[1771345507487,5.83933197,84.42,84.37,2.02206164]
[1771345507687,5.83933197,84.42,84.37,8.03771611]
[1771345507894,2.02206164,84.42,84.371,6.01565447]
[1771345508089,10.6653,84.424,84.38,2.02206164]
[1771345508496,2.02206164,84.42,84.371,6.01565447]
[1771345509786,2.02206164,84.42,84.375,16.68705447]
[1771345510187,2.02206164,84.42,84.376,6.01565447]
[1771345510797,10.6659,84.419,84.376,6.01565447]
[1771345510996,10.6659,84.419,84.377,16.68675447]
[1771345512199,2.02206164,84.42,84.377,16.68675447]
[1771345513296,2.02206164,84.42,84.378,6.01565447]
[1771345513600,2.02206164,84.42,84.379,10.6709]
[1771345514100,2.02206164,84.43,84.381,6.01565447]
[1771345514799,14.42944574,84.436,84.381,6.01565447]
[1771345514800,14.42944574,84.436,84.389,10.6696]
[1771345515709,2.02206164,84.42,84.383,5.7121359]
[1771345516097,2.02206164,84.41,84.374,10.6715]
[1771345516402,3.60676534,84.417,84.374,10.6715]
[1771345517905,2.02206164,84.4,84.36,10.6732]
[1771345518204,3.55518998,84.406,84.361,5.7121359]
[1771345518906,10.6663,84.416,84.372,10.6717]
[1771345519109,2.02206164,84.43,84.381,5.7121359]
[1771345519703,2.02206164,84.43,84.382,5.7121359]
[1771345520399,10.6647,84.429,84.384,5.7121359]
[1771345520805,2.02206164,84.42,84.371,5.7121359]
[1771345521201,2.02206164,84.41,84.373,10.6716]
[1771345521407,2.02206164,84.41,84.371,5.7121359]
[1771345522719,10.6683,84.401,84.356,5.7121359]
[1771345523410,5.50724566,84.4,84.356,5.7121359]
[1771345524214,10.6677,84.405,84.356,5.7121359]
[1771345524415,2.02206164,84.41,84.361,5.7121359]
[1771345524817,2.02206164,84.42,84.371,5.7121359]
[1771345525721,2.02206164,84.42,84.375,10.6713]
[1771345526424,10.666,84.418,84.375,10.6713]
[1771345527522,10.666,84.418,84.371,5.7121359]
[1771345528028,10.6668,84.412,84.371,5.7121359]
[1771345528327,5.3889893,84.42,84.371,5.7121359]
[1771345528526,10.666,84.418,84.371,5.7121359]
[1771345529726,10.666,84.418,84.372,10.6717]
[1771345530831,10.6667,84.413,84.371,5.7121359]
[1771345531030,5.3889893,84.42,84.371,5.7121359]
[1771345532033,10.6671,84.409,84.371,5.7121359]
[1771345533232,10.6671,84.409,84.348,74.58]
[1771345533233,10.6684,84.399,84.355,5.7121359]
[1771345533831,3.28679284,84.408,84.358,5.7121359]
[1771345533832,10.6676,84.406,84.358,5.7121359]
[1771345534133,10.6676,84.406,84.361,5.7121359]
[1771345534321,10.6683,84.4,84.361,5.7121359]
[1771345534926,10.6691,84.394,84.361,5.7121359]
[1771345535933,10.6691,84.394,84.36,2.02229755]
[1771345535934,10.6699,84.388,84.35,2.02229755]
[1771345536338,3.1898563,84.389,84.34,2.02229755]
[1771345536535,10.6707,84.381,84.341,10.6756]
[1771345536728,3.1898563,84.389,84.342,5.7121359]
[1771345537437,10.6706,84.382,84.342,5.7121359]
[1771345537829,13.8595563,84.389,84.342,16.3876359]
[1771345538337,3.1898563,84.389,84.342,5.7121359]
[1771345538523,10.6706,84.382,84.342,5.7121359]
[1771345538729,3.1898563,84.389,84.342,5.7121359]
[1771345539233,3.1898563,84.389,84.344,10.6752]
[1771345539634,3.1898563,84.389,84.345,5.7121359]
[1771345539844,3.1898563,84.389,84.351,10.6744]
[1771345540237,2.02229755,84.4,84.351,10.6744]
[1771345540434,11.02302936,84.439,84.329,74.58]
[1771345540435,3.35568204,84.419,84.371,5.7121359]
[1771345541133,3.35568204,84.419,84.373,5.7121359]
[1771345544245,3.35568204,84.419,84.375,5.7121359]
[1771345544447,3.35568204,84.419,84.38,2.02229755]
[1771345545538,10.6648,84.428,84.381,5.18993436]
[1771345545734,3.31994031,84.466,84.39,2.02229755]
[1771345545941,2.02229755,84.44,84.392,5.18993436]
[1771345546137,3.31994031,84.447,84.4,2.02229755]
[1771345546341,3.30096469,84.464,84.401,5.18993436]
[1771345546642,3.30096469,84.464,84.354,21.3481]
[1771345546643,3.30096469,84.464,84.42,2.02229755]
[1771345546842,3.30096469,84.464,84.421,5.18993436]
[1771345547640,2.02229755,84.46,84.421,5.18993436]
[1771345548646,3.30096469,84.464,84.421,5.18993436]
[1771345549046,74.58,84.489,84.393,74.58]
[1771345549047,3.27156321,84.459,84.41,2.02229755]
[1771345549244,2.02229755,84.45,84.403,5.18993436]
[1771345549638,3.25399715,84.439,84.39,2.02229755]
[1771345550143,3.25399715,84.439,84.391,5.18993436]
[1771345550347,3.25399715,84.439,84.4,2.02229755]
[1771345550744,3.25399715,84.439,84.391,5.18993436]
[1771345551646,10.6638,84.435,84.391,5.18993436]
[1771345552850,3.25399715,84.439,84.4,2.02229755]
[1771345553246,10.6629,84.443,84.4,2.02229755]
[1771345553451,10.6629,84.443,84.401,5.02892857]
[1771345554948,10.6642,84.433,84.4,2.02229755]
[1771345555152,3.43736097,84.432,84.39,2.02229755]
[1771345556449,3.43736097,84.432,84.39,7.05122612]
[1771345556851,3.43736097,84.432,84.391,5.02892857]
[1771345557050,10.6636,84.437,84.391,5.02892857]
[1771345557245,10.6636,84.437,84.4,2.02229755]
[1771345557450,10.6626,84.445,84.4,7.05122612]
[1771345557751,10.6626,84.445,84.401,5.02892857]
[1771345558058,10.6626,84.445,84.362,21.15172703]
[1771345558059,3.38315189,84.46,84.42,2.02229755]
[1771345558753,10.6616,84.453,84.42,2.02229755]
[1771345558954,10.6616,84.453,84.41,2.02229755]
[1771345560254,10.6624,84.447,84.41,2.02229755]
[1771345560451,10.6624,84.447,84.406,5.02892857]
[1771345561350,3.30370072,84.459,84.41,2.02229755]
[1771345561750,3.30370072,84.459,84.385,74.58]
[1771345561751,3.26698249,84.449,84.4,7.05122612]
[1771345562154,3.26698249,84.449,84.39,2.02229755]
[1771345562361,3.25130418,84.439,84.39,2.02229755]
[1771345562755,10.6646,84.43,84.39,2.02229755]
[1771345563154,15.93928593,84.43,84.386,5.02892857]
[1771345563356,10.6646,84.43,84.39,2.02229755]
[1771345563554,5.25952707,84.44,84.391,5.02892857]
[1771345563762,3.23722952,84.399,84.338,5.02892857]
[1771345563953,2.02229755,84.39,84.338,5.02892857]
[1771345564150,2.02229755,84.39,84.34,2.02229755]
[1771345564353,10.6702,84.385,84.34,2.02229755]
[1771345564967,10.6716,84.374,84.33,2.02229755]
[1771345565751,10.6732,84.361,84.321,5.02892857]
[1771345566355,10.6742,84.354,84.321,5.02892857]
[1771345566659,3.03481768,84.373,84.321,5.02892857]
[1771345567461,10.6746,84.35,84.305,5.02892857]
[1771345567661,3.04084844,84.349,84.292,179.18644895]
[1771345568464,3.04084844,84.349,84.252,21.52266813]
[1771345568465,3.04084844,84.349,84.27,5.02892857]
[1771345568659,3.04243884,84.329,84.27,5.02892857]
[1771345569354,6.0243848,84.31,84.244,5.02892857]
[1771345569561,3.02801648,84.309,84.244,5.02892857]
[1771345569965,3.0284389,84.323,84.251,5.02892857]
[1771345570154,3.0284389,84.323,84.19,21.51929351]
[1771345570155,3.0284389,84.309,84.23,5.02892857]
[1771345570360,10.6804,84.304,84.231,10.6897]
[1771345570560,10.6804,84.304,84.232,5.02892857]
[1771345570761,3.04219208,84.303,84.232,5.02892857]
[1771345570962,3.04219208,84.299,84.232,5.02892857]
[1771345571565,3.02851711,84.28,84.216,5.02892857]
[1771345572165,6.0243848,84.29,84.228,5.02892857]
[1771345572471,3.0146487,84.289,84.228,5.02892857]
[1771345573167,2.84248405,84.307,84.231,5.02892857]
[1771345573664,2.84248405,84.307,84.21,6.0243848]
[1771345573665,2.84248405,84.307,84.233,10.6893]
[1771345573869,2.84248405,84.307,84.2,6.0243848]
[1771345573870,2.84248405,84.307,84.241,5.02892857]
[1771345575064,13.49296656,84.325,84.243,4.96071067]
[1771345575358,2.79386009,84.324,84.243,4.96071067]
[1771345575864,2.79472354,84.339,84.261,4.96071067]
[1771345576271,13.45194033,84.322,84.261,4.96071067]
[1771345576472,2.77374033,84.322,84.261,4.96071067]
[1771345576977,2.77374033,84.322,84.262,4.96071067]
[1771345577474,13.43516279,84.336,84.265,4.96071067]
[1771345577670,2.75866279,84.335,84.265,4.96071067]
[1771345578268,2.75866279,84.335,84.26,1.98509547]
[1771345578571,4.79807887,84.327,84.26,1.98509547]
[1771345578778,4.79807887,84.327,84.256,10.6864]
[1771345579661,4.79807887,84.318,84.256,10.6864]
[1771345579872,4.79807887,84.334,84.256,10.6864]
[1771345580074,4.79807887,84.334,84.266,10.6851]
[1771345580276,4.79807887,84.334,84.267,4.96071067]
[1771345580574,4.79807887,84.367,84.27,4.96071067]
[1771345580768,4.79807887,84.367,84.3,6.0243848]
[1771345580968,4.79807887,84.389,84.301,4.96071067]
[1771345581378,10.6713,84.376,84.321,4.96071067]
[1771345582270,4.79807887,84.369,84.321,4.96071067]
[1771345583365,4.79807887,84.364,84.305,4.96071067]
[1771345583567,4.79807887,84.364,84.3,2.68509547]
[1771345583970,4.79807887,84.364,84.292,74.58]
[1771345583971,4.79807887,84.359,84.239,35.56]
[1771345584171,4.79807887,84.359,84.3,6.0243848]
[1771345584878,4.79807887,84.359,84.28,6.0243848]
[1771345585377,4.79807887,84.357,84.288,10.6824]
[1771345585571,4.79807887,84.357,84.289,4.96071067]
[1771345585771,4.79807887,84.357,84.301,4.96071067]
[1771345585977,4.79807887,84.357,84.304,10.6804]
[1771345586481,4.79807887,84.357,84.305,4.96071067]
[1771345588472,4.79807887,84.356,84.305,4.96071067]
[1771345589574,4.79807887,84.356,84.287,4.96071067]
[1771345590575,4.79807887,84.356,84.295,4.96071067]
[1771345591371,4.79807887,84.353,84.295,4.96071067]
[1771345591575,4.79807887,84.353,84.295,15.64221067]
[1771345591776,4.79807887,84.353,84.295,4.96071067]
[1771345592774,4.79807887,84.353,84.302,10.6805]
[1771345594476,4.79807887,84.351,84.302,10.6805]
[1771345595384,4.79807887,84.351,84.295,4.96071067]
[1771345595784,4.79807887,84.351,84.301,4.96071067]
[1771345596582,4.79807887,84.368,84.303,4.96071067]
[1771345597380,4.79807887,84.368,84.311,4.96071067]
[1771345598287,41.58734592,84.39,84.314,4.96071067]
[1771345598288,10.6711,84.378,84.314,4.96071067]
[1771345598487,4.79807887,84.383,84.263,166.2199]
[1771345598488,4.79807887,84.383,84.331,4.96071067]
[1771345599489,4.79807887,84.382,84.316,4.96071067]
[1771345601492,15.46867887,84.382,84.326,4.96071067]
[1771345601683,4.79807887,84.382,84.331,4.96071067]
[1771345601888,4.79807887,84.399,84.331,4.96071067]
[1771345602090,10.6704,84.383,84.331,4.96071067]
[1771345603795,15.46847887,84.383,84.333,10.6767]
[1771345604189,10.6698,84.388,84.341,4.96071067]
[1771345604696,4.79807887,84.397,84.341,4.96071067]
[1771345604890,10.6706,84.382,84.341,4.96071067]
[1771345605194,4.53229284,84.382,84.341,4.96071067]
[1771345606393,4.53229284,84.38,84.319,10.6784]
[1771345606595,4.53229284,84.38,84.312,4.76749729]
[1771345606997,15.20449284,84.37,84.326,10.6776]
[1771345607197,4.53229284,84.369,84.326,10.6776]
[1771345608291,4.53229284,84.369,84.312,4.76749729]
[1771345608292,10.6733,84.361,84.317,10.6787]
[1771345608593,4.53229284,84.36,84.312,4.76749729]
[1771345608785,4.53229284,84.36,84.298,4.76749729]
[1771345608987,4.53229284,84.36,84.32,10.6783]
[1771345609189,6.02734592,84.39,84.312,4.76749729]
[1771345609389,4.53229284,84.389,84.312,4.76749729]
[1771345609593,4.53229284,84.389,84.31,6.02734592]
[1771345609594,10.6712,84.377,84.327,4.76749729]
[1771345609794,4.53229284,84.377,84.311,4.76749729]
[1771345610792,4.53229284,84.363,84.319,10.6784]
[1771345611095,4.53229284,84.363,84.311,4.76749729]
[1771345611492,4.53229284,84.36,84.318,10.6786]
[1771345612600,4.53229284,84.36,84.308,10.6798]
[1771345612991,4.53229284,84.36,84.298,4.78152678]
[1771345613498,15.34035617,84.356,84.306,10.6801]
[1771345613699,4.66645617,84.355,84.306,10.6801]
[1771345614598,4.66645617,84.355,84.306,4.78152678]
[1771345615392,10.6721,84.371,84.319,4.78152678]
[1771345616399,10.6728,84.365,84.321,4.78152678]
[1771345617302,10.6735,84.359,84.321,4.78152678]
[1771345617699,4.66645617,84.373,84.321,4.78152678]
[1771345617900,4.66645617,84.373,84.324,10.6779]
[1771345618199,10.6726,84.366,84.321,4.78152678]
[1771345619197,10.6726,84.366,84.31,6.02734592]
[1771345619198,10.6736,84.358,84.311,4.78152678]
[1771345619392,4.66645617,84.361,84.311,4.78152678]
[1771345620298,4.66645617,84.386,84.311,4.78152678]
[1771345620502,10.6719,84.372,84.332,4.78152678]
[1771345620690,4.66645617,84.386,84.311,4.78152678]
[1771345621288,10.6723,84.368,84.323,4.78152678]
[1771345621500,4.66645617,84.367,84.323,4.78152678]
[1771345622097,4.66645617,84.367,84.324,10.6778]
[1771345622700,10.6709,84.379,84.324,4.78152678]
[1771345623306,4.66645617,84.379,84.324,4.78152678]
[1771345624810,4.66645617,84.371,84.329,10.6771]
[1771345625304,4.66645617,84.371,84.324,4.78152678]
[1771345626104,4.66645617,84.371,84.328,10.6773]
[1771345627606,4.66645617,84.371,84.334,10.6766]
[1771345627907,4.66645617,84.371,84.324,4.78152678]
[1771345628808,4.66645617,84.371,84.327,10.6774]
[1771345629008,4.66645617,84.371,84.327,15.45892678]
[1771345629400,15.33845617,84.371,84.327,15.45892678]
[1771345629797,10.6732,84.362,84.327,4.78152678]
[1771345630006,4.66645617,84.361,84.315,10.679]
[1771345630408,4.66645617,84.361,84.315,15.46052678]
[1771345630811,10.6735,84.359,84.318,15.46012678]
[1771345631307,10.6735,84.359,84.31,6.02734592]
[1771345631308,4.66645617,84.352,84.3,4.78152678]
[1771345632008,4.66645617,84.359,84.291,4.78152678]
[1771345632206,4.66645617,84.372,84.311,4.78152678]
[1771345632399,14.72955405,84.423,84.311,4.78152678]
[1771345632400,4.66645617,84.399,84.311,4.78152678]
[1771345632807,10.6699,84.387,84.338,4.78152678]
[1771345633605,10.6691,84.394,84.343,4.78152678]
[1771345634309,10.6691,84.394,84.346,4.78152678]
[1771345634714,10.6699,84.387,84.346,4.78152678]
[1771345634906,4.66645617,84.399,84.346,4.78152678]
[1771345635610,10.6696,84.39,84.346,4.78152678]
[1771345635804,8.52479292,84.419,84.33,6.02734592]
[1771345635805,4.63979485,84.389,84.332,4.7714401]
[1771345636002,4.63979485,84.377,84.332,4.7714401]
[1771345636204,4.63979485,84.377,84.33,6.02734592]
[1771345636408,6.02734592,84.4,84.319,4.7714401]
[1771345636409,10.6733,84.361,84.319,4.7714401]
[1771345636608,4.63979485,84.364,84.319,4.7714401]
[1771345637109,10.673,84.363,84.319,4.7714401]
[1771345638515,4.63979485,84.364,84.319,4.7714401]
[1771345639816,10.673,84.363,84.319,4.7714401]
[1771345640017,10.673,84.363,84.33,2.02398008]
[1771345640619,4.63979485,84.364,84.33,2.02398008]
[1771345641715,4.63979485,84.364,84.322,10.678]
[1771345642422,4.63979485,84.379,84.34,2.02398008]
[1771345642623,4.63979485,84.379,84.35,2.02398008]
[1771345642818,10.6704,84.384,84.35,2.02398008]
[1771345643225,4.63979485,84.408,84.36,2.02398008]
[1771345643517,10.6676,84.406,84.37,2.02398008]
[1771345644323,10.6684,84.399,84.37,2.02398008]
[1771345646123,10.6684,84.399,84.35,4.7714401]
[1771345646124,10.6676,84.406,84.352,4.7714401]
[1771345646924,10.6676,84.406,84.354,4.7714401]
[1771345647526,10.6683,84.4,84.354,4.7714401]
[1771345648719,10.6691,84.394,84.354,4.7714401]
[1771345649018,4.63979485,84.431,84.354,4.7714401]
[1771345649219,4.63979485,84.431,84.355,4.7714401]
[1771345649525,10.6674,84.407,84.359,4.7714401]
[1771345650227,4.63979485,84.418,84.369,10.6722]
[1771345650228,10.6664,84.415,84.369,10.6722]
[1771345650526,10.6664,84.415,84.37,4.7714401]
[1771345650722,4.63979485,84.418,84.356,79.3714401]
[1771345651514,6.01817672,84.43,84.356,79.3714401]
[1771345651515,4.63979485,84.413,84.357,10.6737]
[1771345651719,4.63979485,84.413,84.356,79.3714401]
[1771345652223,4.63979485,84.413,84.357,4.7714401]
[1771345653230,4.63979485,84.413,84.364,4.7714401]
[1771345654026,4.63979485,84.413,84.373,10.6716]
[1771345654227,4.63979485,84.413,84.364,4.7714401]
[1771345654532,4.63979485,84.439,84.364,4.7714401]
[1771345654827,4.63979485,84.439,84.36,6.01692914]
[1771345654828,4.63979485,84.426,84.371,4.7714401]
[1771345655830,4.63979485,84.421,84.371,4.7714401]
[1771345656220,4.63979485,84.421,84.374,4.7714401]
[1771345656724,4.63979485,84.421,84.366,79.3714401]
[1771345657119,4.63979485,84.421,84.367,4.7714401]
[1771345657518,4.63979485,84.418,84.365,10.6727]
[1771345658524,4.63979485,84.41,84.365,10.6727]
[1771345659126,4.63979485,84.405,84.36,6.01692914]
[1771345659332,4.63979485,84.405,84.354,15.4454401]
[1771345659524,6.01692914,84.4,84.328,4.7714401]
[1771345659729,4.63979485,84.399,84.33,74.6]
[1771345659938,4.63979485,84.374,84.328,4.7714401]
[1771345660132,4.63979485,84.374,84.31,6.01692914]
[1771345660329,4.63979485,84.374,84.314,4.7714401]
[1771345660736,4.63979485,84.37,84.326,10.6776]
[1771345661832,4.63979485,84.366,84.315,10.6789]
[1771345662839,4.63979485,84.362,84.306,10.6802]
[1771345663236,10.6735,84.359,84.307,4.7714401]
[1771345663637,4.63979485,84.358,84.307,4.7714401]
[1771345664233,15.31489485,84.346,84.307,4.7714401]
[1771345664438,15.31489485,84.346,84.296,74.6]
[1771345665028,74.6,84.378,84.296,74.6]
[1771345665029,4.73572425,84.343,84.296,74.6]
[1771345665334,4.73572425,84.343,84.294,4.74714322]
[1771345665534,4.73572425,84.339,84.28,4.74714322]
[1771345665736,4.73572425,84.325,84.273,74.6]
[1771345666037,4.73572425,84.325,84.265,4.74714322]
[1771345666432,4.73572425,84.325,84.265,79.34714322]
[1771345666630,4.73572425,84.32,84.266,4.74714322]
[1771345666836,4.73572425,84.359,84.271,4.74714322]
[1771345667030,4.73572425,84.341,84.274,4.74714322]
[1771345667335,4.73572425,84.341,84.275,74.6]
[1771345667527,4.73572425,84.341,84.276,4.74714322]
[1771345667936,10.6767,84.334,84.278,4.74714322]
[1771345668440,4.73572425,84.341,84.278,4.74714322]
[1771345668840,4.73572425,84.333,84.279,74.6]
[1771345669044,4.73572425,84.333,84.275,74.6]
[1771345669242,4.73572425,84.333,84.276,74.6]
[1771345670328,4.73572425,84.333,84.263,4.74714322]
[1771345670329,4.73572425,84.318,84.266,74.62]
[1771345671239,4.73572425,84.318,84.263,4.74714322]
[1771345671830,4.73572425,84.315,84.263,4.74714322]
[1771345672436,6.01692914,84.34,84.263,4.74714322]
[1771345672437,4.43091352,84.312,84.263,4.74714322]
[1771345672741,4.43091352,84.312,84.26,74.62]
[1771345672937,4.43091352,84.312,84.261,4.349484]
[1771345673142,10.68,84.307,84.261,4.349484]
[1771345673742,4.43091352,84.312,84.263,4.349484]
[1771345673944,4.43091352,84.312,84.27,2.02666574]
[1771345675939,4.43091352,84.312,84.263,4.349484]
[1771345676339,4.43091352,84.312,84.265,4.349484]
[1771345677046,10.6797,84.31,84.265,4.349484]
[1771345677444,10.6797,84.31,84.265,78.969484]
[1771345677649,4.43091352,84.304,84.251,4.349484]
[1771345678843,4.43091352,84.304,84.237,4.349484]
[1771345679150,4.43091352,84.304,84.241,4.349484]
[1771345679350,4.43091352,84.304,84.24,6.03213643]
[1771345679351,4.43091352,84.304,84.248,4.349484]
[1771345680347,4.43091352,84.304,84.252,4.349484]
[1771345680651,4.43091352,84.329,84.261,4.349484]
[1771345681154,4.43091352,84.319,84.263,4.349484]
[1771345681747,4.43091352,84.306,84.256,10.6865]
[1771345682145,4.43091352,84.306,84.249,4.349484]
[1771345682458,4.43091352,84.286,84.238,10.6887]
[1771345682752,4.43091352,84.286,84.236,74.62]
[1771345683461,4.43091352,84.286,84.22,6.03213643]
[1771345683652,10.6838,84.278,84.221,10.6909]
[1771345683857,4.43091352,84.277,84.221,10.6909]
[1771345684150,4.43091352,84.277,84.22,6.03213643]
[1771345684350,4.43091352,84.277,84.221,4.349484]
[1771345684757,10.6842,84.275,84.222,4.349484]
[1771345684948,10.6842,84.275,84.22,6.03213643]
[1771345684949,4.43091352,84.275,84.22,6.03213643]
[1771345685150,4.43091352,84.275,84.207,4.349484]
[1771345685352,4.43091352,84.257,84.202,74.62]
[1771345685951,4.43091352,84.257,84.192,4.349484]
[1771345686748,15.11841352,84.248,84.192,15.043984]
[1771345686944,4.43091352,84.247,84.192,15.043984]
[1771345687348,4.43091352,84.247,84.152,35.56]
[1771345687349,4.43091352,84.219,84.143,4.349484]
[1771345687551,4.43091352,84.219,84.13,74.62]
[1771345687745,4.43091352,84.219,84.131,4.349484]
[1771345687746,4.43091352,84.217,84.131,4.349484]
[1771345687952,4.43091352,84.195,84.131,4.349484]
[1771345688561,4.43091352,84.194,84.132,15.051684]
[1771345688861,4.43091352,84.194,84.133,4.349484]
[1771345689051,15.12541352,84.193,84.134,10.702]
[1771345689250,15.12541352,84.193,84.134,15.051484]
[1771345689753,4.43091352,84.192,84.134,4.349484]
[1771345690150,4.43091352,84.188,84.117,4.349484]
[1771345690357,4.43091352,84.188,84.131,4.349484]
[1771345690552,4.43091352,84.204,84.15,6.03213643]
[1771345690758,4.43091352,84.204,84.135,4.349484]
[1771345691248,4.43091352,84.204,84.151,4.349484]
[1771345691448,4.43091352,84.22,84.154,4.349484]
[1771345691647,6.03213643,84.24,84.153,4.349484]
[1771345691648,4.43091352,84.226,84.153,4.349484]
[1771345691849,4.43091352,84.226,84.171,4.349484]
[1771345692058,4.43091352,84.226,84.175,4.349484]
[1771345692259,6.03213643,84.26,84.175,4.349484]
[1771345692260,4.43091352,84.25,84.175,4.349484]
[1771345692855,4.43091352,84.236,84.158,4.349484]
[1771345693557,4.43091352,84.227,84.16,4.349484]
[1771345694357,4.43091352,84.227,84.171,4.3405736]
[1771345694557,10.6904,84.226,84.171,4.3405736]
[1771345695253,4.43091352,84.227,84.172,10.6971]
[1771345695452,4.43091352,84.227,84.172,15.0376736]
[1771345695867,4.43091352,84.227,84.173,4.3405736]
[1771345696067,4.43091352,84.227,84.177,4.3405736]
[1771345696460,4.68010136,84.255,84.191,4.3405736]
[1771345696956,4.68010136,84.255,84.182,74.62]
[1771345696957,4.68010136,84.278,84.211,4.3405736]
[1771345697662,4.68010136,84.275,84.211,4.3405736]
[1771345698662,4.68010136,84.292,84.223,4.3405736]
[1771345699667,10.682,84.292,84.223,4.3405736]
[1771345699973,4.68010136,84.291,84.223,4.3405736]
[1771345700567,4.68010136,84.29,84.221,4.3405736]
[1771345701267,4.68010136,84.29,84.223,10.6906]
[1771345701761,4.68010136,84.29,84.223,15.0311736]
[1771345701960,4.68010136,84.29,84.22,6.03213643]
[1771345703673,4.68010136,84.29,84.223,4.3405736]
[1771345704379,4.68010136,84.309,84.241,4.3405736]
[1771345704870,4.68010136,84.309,84.26,6.03213643]
[1771345705066,4.68010136,84.339,84.261,4.3405736]
[1771345706367,4.68010136,84.337,84.27,10.6846]
[1771345706672,4.68010136,84.337,84.26,6.03213643]
[1771345706874,4.68010136,84.335,84.26,6.03213643]
[1771345707071,4.68010136,84.319,84.24,6.03213643]
[1771345707273,4.68010136,84.319,84.241,4.3405736]
[1771345707572,4.68010136,84.318,84.241,4.3405736]
[1771345708468,4.68010136,84.316,84.253,10.6868]
[1771345708665,4.68010136,84.316,84.224,4.3405736]
[1771345708871,4.68010136,84.299,84.244,10.688]
[1771345709272,4.68010136,84.299,84.224,4.3405736]
[1771345709775,4.68010136,84.289,84.224,4.3405736]
[1771345710165,15.36250136,84.289,84.224,4.3405736]
[1771345710376,4.68010136,84.288,84.224,4.3405736]
[1771345711170,4.68010136,84.287,84.233,10.6894]
[1771345711472,74.64,84.305,84.224,4.3405736]
[1771345711673,4.68010136,84.303,84.224,4.3405736]
[1771345712570,4.68010136,84.298,84.224,4.3405736]
[1771345713170,4.68010136,84.296,84.224,4.3405736]
[1771345713475,4.68010136,84.289,84.224,4.3405736]
[1771345713874,4.68010136,84.282,84.224,4.3405736]
[1771345714071,4.68010136,84.282,84.208,4.3405736]